[Event "Charlotte Spring IM-C 2023"]
[Site "Charlotte"]
[Date "2023.03.16"]
[Round "1.1"]
[White "Jayaraman, Roshan"]
[Black "Adamson, Robby"]
[Result "1-0"]
[ECO "E49"]
[WhiteElo "1907"]
[BlackElo "2265"]
[Annotator "TA"]
[PlyCount "57"]
[EventDate "2023.03.14"]
[EventType "tourn"]
[EventCountry "USA"]
[SourceTitle "playchess.com"]
[Source "ChessBase"]
[SourceQuality "1"]
[TimeControl "5400+30"]

{[%evp 23,57,69,124,129,129,126,164,155,287,295,270,93,84,87,1018,989,1744,1729,1543,1498,1281,239,598,597,639,505,536,535,516,492,550,544,1112,1112,29975,12839]} 1. d4 {[%emt 0:04:59]} Nf6 {[%emt 0:00:23]} 2. c4 {[%emt 0:00:14]} e6 {[%emt 0:00:06]} 3. Nc3 {[%emt 0:01:11]} Bb4 {[%emt 0:00:12]} 4. e3 {[%emt 0:00:22]} O-O {[%emt 0:00:26]} 5. Bd3 {[%emt 0:00:24]} d5 {[%emt 0:00:14]} 6. a3 {[%emt 0:00:44]} Bxc3+ {[%emt 0:02:04]} 7. bxc3 {[%emt 0:00:11]} b6 {[%emt 0:03:56]} 8. cxd5 {[%emt 0:01:40]} exd5 {[%emt 0:02:38]} 9. Ne2 {[%emt 0:00:48]} Ba6 {[%emt 0:00:21]} 10. O-O {[%emt 0:01:27]} Qc8 {[%emt 0:03:29]} 11. f3 {[%emt 0:04:14]} Re8 {[%emt 0:03:14]} 12. Ng3 {[%emt 0:03:51]} c5 {[%emt 0:05:55]} (12... Bxd3 $14 13. Qxd3 Qa6 14. Qxa6 Nxa6) 13. e4 $1 $16 {[%emt 0:09:15] E49: Nimzo-Indian: Rubinstein: 5 Bd3 d5 6 a3 Bxc3+ 7 bxc3.} cxd4 {[%emt 0:08:08]} 14. cxd4 {[%emt 0:04:05]} dxe4 {[%emt 0:27:10]} 15. fxe4 {[%emt 0:01:36] Bxa6 would be deadly. White is clearly better.} ({Weaker is} 15. Nxe4 Nxe4 16. Bxe4 (16. fxe4 Qc3 $15) 16... Bxf1 17. Bxa8 Be2 $11) 15... Qc3 {[%emt 0:01:29] [#]} (15... Qg4 $16 {was called for.}) 16. Bxa6 $1 $18 {[%emt 0:36:22]} Nxa6 {[%emt 0:00:54] [#]} 17. e5 $2 {[%emt 0:10:34]} Qxa1 $16 {[%emt 0:14:57]} 18. exf6 {[%emt 0:00:10][%cal Be5f6,Bf6e7][%mdl 32] [#] Hoping for Nf5.} Rad8 $146 {[%emt 0:04:24][%mdl 8192] A mistake that costs the game.} (18... Rac8 $16) ({Predecessor:} 18... g6 19. Qd2 Kh8 20. Bb2 Qa2 21. Qh6 Rg8 22. Ne4 g5 23. Nxg5 Rxg5 24. Qxg5 Rg8 {1-0 Protopopova,A (2267)-Vasilevich,T (2355) RUS-chT (Women) 2021 (6.3)}) 19. Nf5 $18 {[%emt 0:01:45][%cal Of5h6] Nh6+! would kill now.} g6 {[%emt 0:18:27]} 20. Ne7+ {[%emt 0:01:29]} Rxe7 {[%emt 0:00:21]} 21. fxe7 {[%emt 0:00:09]} Re8 {[%emt 0:00:01]} 22. Qa4 $2 $40 {[%emt 0:02:02][%mdl 128] Black is in trouble. Black is weak on the dark squares} (22. Qf3 Qxd4+ 23. Be3) 22... Nc7 $2 {[%emt 0:00:51]} (22... Rxe7 {is more resistant.} 23. Qxa6 Qxd4+ 24. Kh1 Qc3) 23. Bf4 {[%emt 0:01:53][%cal Bc1f4,Bf4c7,Bc7e5,Be5f6][%mdl 32]} ({And not} 23. Qxa7 Qxd4+ 24. Kh1 Rxe7 $17) 23... Qc3 {[%emt 0:00:20]} 24. Bxc7 {[%emt 0:04:26]} ({Inferior is} 24. Qxa7 Qxd4+ 25. Kh1 Qc4 $17) 24... Rxe7 {[%emt 0:00:12] Strongly threatening ...Qe3+.} 25. Be5 {[%emt 0:00:20]} Qe3+ {[%emt 0:01:18]} 26. Kh1 {[%emt 0:00:10] And now Qc4 would win.} Qd3 {[%emt 0:00:18][%cal Rd3f1] Prevents Qc4} 27. Rc1 {[%emt 0:01:35] White threatens Rc8+ and mate.} f6 {[%emt 0:00:35]} 28. Bxf6 {[%emt 0:00:43]} Qc3 {[%emt 0:01:15]} 29. Qd1 {[%emt 0:00:59] Weighted Error Value: White=0.77/Black=0.96} (29. Rxc3 $2 Re1#) 1-0

[Event "Charlotte Spring IM-C 2023"]
[Site "Charlotte"]
[Date "2023.03.16"]
[Round "1.2"]
[White "Sriniaiyer, Sudarshan"]
[Black "Nguyen, James Le"]
[Result "1-0"]
[ECO "D23"]
[WhiteElo "2186"]
[BlackElo "2100"]
[Annotator "TA"]
[PlyCount "103"]
[EventDate "2023.03.14"]
[EventType "tourn"]
[EventCountry "USA"]
[SourceTitle "playchess.com"]
[Source "ChessBase"]
[SourceQuality "1"]
[TimeControl "5400+30"]

{[%evp 20,103,18,0,36,32,37,26,16,35,64,63,68,66,63,56,43,8,10,15,13,11,17,12,9,0,5,7,8,0,0,0,0,0,0,0,0,0,0,0,0,0,0,0,0,0,0,-31,-31,-61,-8,-8,-8,-14,-8,-8,-9,-25,-23,-27,0,0,0,0,0,0,0,0,0,0,0,0,0,0,0,0,0,0,0,0,0,0,0,0,29989,29990]} 1. d4 {[%emt 0:00:36]} d5 {[%emt 0:00:09]} 2. c4 {[%emt 0:00:08]} c6 {[%emt 0:00:10]} 3. Nf3 {[%emt 0:00:16]} Nf6 {[%emt 0:00:12]} 4. Qc2 {[%emt 0:00:23]} dxc4 {[%emt 0:01:54]} 5. Qxc4 {[%emt 0:00:08]} Bf5 {[%emt 0:00:40]} 6. g3 {[%emt 0:00:14]} e6 {[%emt 0:01:01]} 7. Bg2 {[%emt 0:00:16]} Be7 {[%emt 0:01:33]} 8. O-O {[%emt 0:01:27]} O-O {[%emt 0:01:20]} 9. Nc3 {[%emt 0:05:20]} Nbd7 {[%emt 0:02:22]} 10. Re1 {[%emt 0:00:40]} Ne4 {[%emt 0:04:45] 10...Bg6 is vanishing.} 11. Bf4 {[%emt 0:01:09]} Rc8 {[%emt 0:08:26] D23: Queen's Gambit Accepted: 3 Nf3 Nf6 sidelines.} 12. Qb3 {[%emt 0:10:01]} Qb6 {[%emt 0:09:43]} 13. Nh4 {[%emt 0:07:02]} Bxh4 {[%emt 0:02:30] [#] White has an edge.} (13... Qxd4 $2 14. Nxe4 (14. Qxb7 Qxf2+ 15. Kh1 Bxh4 $17) 14... Bxe4 15. Red1 $18 (15. Qxb7 Bxh4 16. Rad1 Qb6 $16)) 14. gxh4 $146 {[%emt 0:01:34]} ({Predecessor:} 14. Nxe4 Bxe4 15. Bxe4 Bf6 16. Qxb6 Nxb6 17. e3 Rfd8 18. g4 h6 19. Rac1 Be7 20. Bg3 {½-½ Huang,Q (2469)-Pham,L (2399) Asian Continental op (Women) 12th 2013 (3)}) 14... e5 {[%emt 0:09:17] [#] Strongly threatening ...Nxc3.} (14... Qxd4 $2 15. Be3 Qe5 16. f4 $18 (16. Qxb7 Nef6 $11)) 15. Qxb6 {[%emt 0:29:00]} axb6 {[%emt 0:01:10]} 16. Bxe4 {[%emt 0:02:53]} ({Reject} 16. dxe5 Nxc3 17. bxc3 Ra8 $11) 16... Bxe4 {[%emt 0:00:41]} 17. Bxe5 {[%emt 0:00:08]} Nxe5 {[%emt 0:04:31]} 18. dxe5 {[%emt 0:13:00]} (18. Nxe4 $5 {[%cal Rd4e5]} Ng6 19. Nd6 $14) 18... Bf5 {[%emt 0:15:07]} 19. Na4 {[%emt 0:11:19]} Rce8 {[%emt 0:08:08]} 20. e4 {[%emt 0:02:48]} Bg4 {[%emt 0:00:38]} 21. f4 {[%emt 0:00:26]} f6 {[%emt 0:01:11]} 22. Nxb6 {[%emt 0:01:17]} fxe5 {[%emt 0:00:42]} 23. f5 {[%emt 0:00:07]} g6 {[%emt 0:06:46]} 24. fxg6 {[%emt 0:00:12]} hxg6 {[%emt 0:00:11]} 25. Rf1 {[%emt 0:00:16]} Rxf1+ {[%emt 0:04:56]} 26. Rxf1 $11 {[%emt 0:01:41][%mdl 4096] Endgame KRB-KRN} Rd8 {[%emt 0:00:13]} 27. Re1 {[%emt 0:03:29]} Be6 {[%emt 0:03:36] Wards off Nc4} 28. b3 {[%emt 0:01:34]} Rd2 {[%emt 0:04:00]} 29. Na4 {[%emt 0:02:04]} Rxa2 {[%emt 0:01:27][%cal Og8f7]} 30. Nc5 {[%emt 0:00:04][%csl LRb7,LRe6]} Bh3 {[%emt 0:02:58]} 31. Re3 {[%emt 0:02:06]} Rg2+ {[%emt 0:02:34]} 32. Kh1 {[%emt 0:00:04]} Rc2 {[%emt 0:00:08] Dodges Rc3} 33. Rxh3 {[%emt 0:00:07]} (33. Nd3 $5 {[%cal Re3h3]} Be6 34. Rg3 $11) 33... Rxc5 {[%emt 0:00:14] KR-KR} 34. Rd3 {[%emt 0:02:00]} b5 {[%emt 0:01:08]} ({Black should play} 34... Rb5 $1 $15) 35. Kg2 {[%emt 0:02:18]} Rc2+ {[%emt 0:00:30]} 36. Kf3 {[%emt 0:00:22]} b4 {[%emt 0:02:24]} 37. Rd6 {[%emt 0:01:11]} Kg7 {[%emt 0:00:38]} 38. Kg4 {[%emt 0:00:43]} Rg2+ {[%emt 0:00:29]} 39. Kh3 {[%emt 0:00:18]} Rb2 {[%emt 0:00:25]} 40. Rxc6 {[%emt 0:00:46]} Rxb3+ {[%emt 0:00:05]} 41. Kg4 {[%emt 0:00:31]} Re3 {[%emt 0:01:00]} 42. Kg5 {[%emt 0:00:44]} Rxe4 {[%emt 0:00:19]} 43. Rxg6+ {[%emt 0:00:11]} Kh7 {[%emt 0:00:26][%cal Oe4g4] ( -> ...Rg4+!)} 44. Rb6 {[%emt 0:00:10]} Re2 {[%emt 0:00:41]} 45. Rxb4 {[%emt 0:01:07]} Rxh2 {[%emt 0:00:14]} 46. Rb7+ {[%emt 0:00:18]} Kg8 {[%emt 0:00:51]} 47. Kg6 {[%emt 0:00:43][%cal Rb7b8]} Rg2+ {[%emt 0:00:10]} 48. Kf5 {[%emt 0:00:07]} Rh2 {[%emt 0:00:59]} 49. h5 {[%emt 0:00:11]} Rg2 {[%emt 0:00:39]} 50. Kxe5 {[%emt 0:00:14]} Rg5+ {[%emt 0:00:17]} 51. Kf6 {[%emt 0:00:11]} Rxh5 {[%emt 0:00:16][%mdl 8192] [#]} (51... Rg4 $11) 52. Kg6 {[%emt 0:00:01] Weighted Error Value: White=0.04 (flawless) /Black=0.24 (precise)} 1-0

[Event "Charlotte Spring IM-C 2023"]
[Site "Charlotte"]
[Date "2023.03.16"]
[Round "1.3"]
[White "Vanapalli, Vishnu"]
[Black "Petenyi, Tamas"]
[Result "1/2-1/2"]
[ECO "A10"]
[WhiteElo "2226"]
[BlackElo "2325"]
[Annotator "TA"]
[PlyCount "74"]
[EventDate "2023.03.14"]
[EventType "tourn"]
[EventCountry "USA"]
[SourceTitle "playchess.com"]
[Source "ChessBase"]
[SourceQuality "1"]
[TimeControl "5400+30"]

{[%evp 9,74,51,56,54,53,49,66,54,98,38,31,11,0,1,12,0,-2,0,7,0,17,0,0,0,0,0,0,0,0,-8,-12,-15,0,0,0,0,0,0,0,0,0,0,0,0,0,0,0,0,0,0,0,0,0,0,0,0,0,0,0,0,0,0,0,0,0,0,0]} 1. c4 {[%emt 0:00:31]} b6 {[%emt 0:00:46]} 2. Nf3 {[%emt 0:02:27]} Bb7 {[%emt 0:00:20]} 3. g3 {[%emt 0:00:07]} Bxf3 {[%emt 0:01:59]} 4. exf3 {[%emt 0:00:10]} c5 {[%emt 0:00:09]} 5. d4 {[%emt 0:00:13][%cal Bd2d4,Bd4d5][%mdl 32]} Nc6 {[%emt 0:01:02]} 6. d5 {[%emt 0:00:21] A10: English Opening: Unusual Replies for Black.} Nd4 {[%emt 0:00:18]} 7. Be3 {[%emt 0:00:37]} Nf5 {[%emt 0:01:52]} 8. Bf4 {[%emt 0:11:13] [#] Black is weak on the light squares. White is slightly better.} g6 $146 {[%emt 0:07:50]} ({Predecessor:} 8... e6 9. Bd3 Bd6 10. Bd2 Be5 11. Nc3 Nge7 12. f4 Bd4 13. Qf3 Nd6 14. O-O O-O {0-1 Semcesen,D (2420)-Tikkanen,H (2469) SWE-ch Lund 2010 (3)}) 9. Be5 {[%emt 0:09:19]} (9. g4 $16 Bh6 10. Bxh6 Nfxh6 11. Nc3) 9... Bg7 $14 {[%emt 0:01:55]} 10. f4 {[%emt 0:01:49]} Bxe5 {[%emt 0:10:15] The position is equal.} 11. fxe5 {[%emt 0:00:15]} d6 {[%emt 0:01:28]} 12. exd6 {[%emt 0:06:40]} exd6 {[%emt 0:02:07]} 13. Bd3 {[%emt 0:02:15]} Nd4 {[%emt 0:01:51]} 14. O-O {[%emt 0:00:42]} Nf6 {[%emt 0:01:04]} 15. Re1+ {[%emt 0:02:48]} Kf8 {[%emt 0:00:08]} 16. Nd2 {[%emt 0:03:18]} Kg7 {[%emt 0:01:35]} 17. Nf3 {[%emt 0:04:13]} Nxf3+ $1 {[%emt 0:06:24]} 18. Qxf3 {[%emt 0:00:09]} Re8 {[%emt 0:04:44]} 19. Bc2 {[%emt 0:14:22]} Qd7 {[%emt 0:02:51]} 20. Qc3 {[%emt 0:02:08]} Rxe1+ {[%emt 0:01:40]} 21. Rxe1 {[%emt 0:01:35]} Re8 {[%emt 0:00:15]} 22. Rxe8 {[%emt 0:07:31]} Qxe8 $11 {[%emt 0:01:07][%mdl 4096] Endgame KQB-KQN} 23. g4 {[%emt 0:00:31] [#] g5 is the strong threat.} h6 {[%emt 0:05:52][%cal Bh7h6,Bh6g5,Bg5h4,Bh4h3][%mdl 32]} 24. f4 {[%emt 0:10:17]} Qe2 {[%emt 0:12:36]} 25. h3 {[%emt 0:00:48] And now g5 would win.} g5 {[%emt 0:00:06]} 26. fxg5 {[%emt 0:02:25]} hxg5 {[%emt 0:00:01]} 27. a3 {[%emt 0:08:17]} Qe7 {[%emt 0:03:24]} 28. Bf5 {[%emt 0:02:45]} Kg8 {[%emt 0:02:09]} 29. Qd2 {[%emt 0:03:00]} Ne8 {[%emt 0:02:22]} 30. h4 {[%emt 0:00:44]} gxh4 {[%emt 0:08:21] Hoping for ...Ng7.} 31. Qh6 {[%emt 0:00:07]} Qe1+ {[%emt 0:05:38]} 32. Kg2 {[%emt 0:00:52] [#] Threatening mate with Bh7+.} h3+ {[%emt 0:08:44]} 33. Kf3 {[%emt 0:00:13] Bh7+ would kill now.} (33. Kxh3 $2 Qh1+ 34. Kg3 Qxh6 $19) 33... Qf1+ {[%emt 0:00:22]} 34. Kg3 {[%emt 0:00:26] White threatens Bh7+ and mate.} Qg1+ {[%emt 0:00:35]} (34... Qxc4 35. Bh7+ (35. Kxh3 Qf1+ 36. Kh2 Qe2+ 37. Kh3 Qf1+ 38. Kh2 Qe2+ 39. Kh3 Qf1+ $11) 35... Kh8 36. Bg6+ (36. Qxh3 $2 Kg7 $19) 36... Kg8 37. Qh7+ Kf8 38. Qxf7#) 35. Kf3 $1 {[%emt 0:00:39] White wants to mate with Bh7+. The board is on fire.} Qf1+ {[%emt 0:01:45]} 36. Kg3 {[%emt 0:00:04] Strongly threatening Bh7+.} Qg1+ {[%emt 0:01:21]} (36... Qxc4 {leads to mate.} 37. Bh7+ (37. Kxh3 Qf1+ 38. Kh2 Qe2+ 39. Kh3 Qf3+ 40. Kh2 Qf2+ 41. Kh3 Qf3+ 42. Kh2 Qf2+ 43. Kh3 Qf3+ $11) 37... Kh8 38. Bg6+ {[%mdl 64] Discovered Attack} (38. Qxh3 $2 {perishes.} Kg7 $19) 38... Kg8 39. Qh7+ Kf8 40. Qxf7#) 37. Kf3 $1 {[%emt 0:05:09] Intending Bh7+ and mate.} Qf1+ {Weighted Error Value: White=0.04 (flawless) /Black=0.03 (flawless)} 1/2-1/2

[Event "Charlotte Spring IM-C 2023"]
[Site "Charlotte"]
[Date "2023.03.16"]
[Round "1.4"]
[White "Chiku-Ratte, Olivier-Kenta"]
[Black "Yu, Jiangwei"]
[Result "0-1"]
[ECO "D23"]
[WhiteElo "2301"]
[BlackElo "2167"]
[Annotator "TA"]
[PlyCount "150"]
[EventDate "2023.03.14"]
[EventType "tourn"]
[EventCountry "USA"]
[SourceTitle "playchess.com"]
[Source "ChessBase"]
[SourceQuality "1"]
[TimeControl "5400+30"]

{[%evp 15,150,21,16,5,14,-2,35,22,20,22,18,0,41,0,0,0,-4,0,14,11,25,7,12,12,12,0,0,-24,0,0,19,0,0,-4,10,0,42,23,28,20,85,65,78,82,81,76,97,67,56,54,81,81,127,73,79,78,79,0,0,-64,-68,-92,-82,-70,-74,-122,-101,-110,-75,-97,58,0,0,0,0,0,47,27,242,245,225,207,189,0,0,-291,-136,-152,-36,-30,-28,-163,-112,-177,-173,-972,-95,-156,-157,-345,-361,-354,-291,-546,-517,-433,-410,-1250,-1246,-1224,-1097,-803,0,-96,-96,-603,-97,-395,-393,-362,0,0,0,-370,0,0,0,-369,-339,-339,-163,-122,-106,-891,-889,-783,-776]} 1. d4 {[%emt 0:00:02]} d5 {[%emt 0:01:10]} 2. c4 {[%emt 0:00:19]} c6 {[%emt 0:00:08]} 3. Nf3 {[%emt 0:00:04]} Nf6 {[%emt 0:00:06]} 4. Qb3 {[%emt 0:00:34]} dxc4 {[%emt 0:00:35]} 5. Qxc4 {[%emt 0:00:06]} Bf5 {[%emt 0:00:14]} 6. g3 {[%emt 0:01:16]} e6 {[%emt 0:01:15]} 7. Bg2 {[%emt 0:01:51]} Nbd7 {[%emt 0:00:13] 7...Be7 is more advanced technology.} 8. O-O {[%emt 0:01:47]} Be7 {[%emt 0:00:32]} 9. Rd1 {[%emt 0:00:58] D23: Queen's Gambit Accepted: 3 Nf3 Nf6 sidelines.} O-O {[%emt 0:02:58]} 10. e3 {[%emt 0:00:26]} Ne4 {[%emt 0:12:08]} 11. Qe2 {[%emt 0:08:57] White is slightly better.} Bg4 {[%emt 0:01:24]} 12. h3 {[%emt 0:18:16]} Bh5 {[%emt 0:00:50] [#]} 13. Nc3 $146 {[%emt 0:10:50]} (13. g4 {simplifies} Bg6 14. Nfd2 Nxd2 15. Bxd2 f5 16. Be1) ({Predecessor:} 13. g4 Bg6 14. Ne1 Bh4 15. Nd3 f5 16. f4 fxg4 17. hxg4 h5 18. Nc3 Ng3 19. Qf3 hxg4 20. Qxg4 {½-½ Steiger,M (1977)-Ahlberg,M (2032) Berlin-ch Seniors op 34th 2018 (9)}) 13... Ng5 {[%emt 0:04:10]} 14. h4 {[%emt 0:10:18]} (14. g4 {simplifies} Nxf3+ 15. Qxf3 Bg6 16. e4) 14... Nxf3+ {[%emt 0:00:22]} 15. Bxf3 {[%emt 0:00:05]} Bxf3 {[%emt 0:00:03]} 16. Qxf3 {[%emt 0:00:06]} Qc7 {[%emt 0:19:21]} 17. e4 {[%emt 0:02:14]} Nb6 {[%emt 0:04:41]} 18. Qe2 {[%emt 0:12:35]} Rad8 {[%emt 0:08:40]} 19. a4 {[%emt 0:03:40]} a5 {[%emt 0:02:18]} 20. h5 {[%emt 0:05:36]} h6 {[%emt 0:01:13]} 21. Kg2 {[%emt 0:03:52]} (21. Be3 $5) 21... Qd6 {[%emt 0:18:24]} 22. b3 {[%emt 0:04:46]} Rfe8 {[%emt 0:09:07]} 23. Bf4 {[%emt 0:02:01]} Qd7 {[%emt 0:00:19]} 24. Qg4 {[%emt 0:02:30]} Kh7 {[%emt 0:06:53]} 25. Be5 {[%emt 0:01:11][%csl Ge5][%cal Rg4g7]} Rg8 {[%emt 0:01:10]} 26. Ne2 {[%emt 0:00:52]} (26. Qf3 $5 {[%cal Rf3f7]} Rgf8 27. Ne2 $11 (27. Qg4 f6 $11)) 26... Bf6 {[%emt 0:01:00]} 27. Bf4 {[%emt 0:02:51]} Qe7 {[%emt 0:03:21]} (27... e5 $11 {remains equal.} 28. Qxd7 Nxd7 29. dxe5 Bxe5) 28. Be3 {[%emt 0:01:56]} Qc7 {[%emt 0:00:26]} 29. Rac1 {[%emt 0:00:24][%cal Od4d5]} Nd7 {[%emt 0:00:34]} 30. Qf3 {[%emt 0:01:55]} Rgf8 {[%emt 0:01:00]} 31. Nf4 {[%emt 0:01:28]} Bg5 {[%emt 0:00:14]} 32. d5 $1 {[%emt 0:01:00]} Ne5 {[%emt 0:00:44]} 33. Qe2 {[%emt 0:00:04]} Qc8 {[%emt 0:00:44]} (33... Rfe8 $142) 34. Bb6 {[%emt 0:00:39]} (34. Bc5 $142) 34... Rde8 $16 {[%emt 0:00:08]} 35. d6 {[%emt 0:00:39]} Nd7 {[%emt 0:00:06]} 36. Bxa5 {[%emt 0:00:18] White has more active pieces.} (36. Be3 $16) 36... e5 $11 {[%emt 0:00:17]} 37. Nd3 {[%emt 0:01:26]} Bxc1 $15 {[%emt 0:00:04]} 38. Nxc1 {[%emt 0:00:35]} b6 {[%emt 0:00:38][%cal Bb7b6,Bb6b5][%mdl 32]} 39. Bc3 {[%emt 0:00:05]} Re6 {[%emt 0:01:36]} 40. Qc4 {[%emt 0:00:29]} (40. f4 $142) 40... Rd8 $17 {[%emt 0:00:40]} 41. f4 {[%emt 0:01:07]} b5 {[%emt 0:00:07]} 42. Qe2 {[%emt 0:00:35]} f6 $2 {[%emt 0:00:32]} (42... Qb7 $17 43. Qf3 Kg8) 43. Qg4 {[%emt 0:00:26]} (43. axb5 $2 exf4 44. Qg4 (44. gxf4 $2 cxb5 45. Qf3 Rde8 $19) 44... cxb5 45. Qxe6 Qxc3 46. Qf5+ Kh8 47. Qxf4 Qc2+ 48. Qd2 Qxe4+ 49. Kf2 Qf5+ 50. Kg2 Re8 $17) (43. Ba5 $14) 43... Nf8 $11 {[%emt 0:00:11]} 44. fxe5 {[%emt 0:00:16]} fxe5 {[%emt 0:00:19]} 45. Qf5+ {[%emt 0:00:11]} Kh8 {[%emt 0:01:15] Black is weak on the dark squares} (45... Kg8 $1 $11 {deserves consideration.}) 46. Bxe5 $14 {[%emt 0:00:59]} Rde8 $2 {[%emt 0:00:09]} (46... bxa4 $11 47. bxa4 Ree8) 47. Nd3 $18 {[%emt 0:00:27]} Nd7 {[%emt 0:00:59][%cal Re6e5]} 48. Bb2 {[%emt 0:00:39]} Rxd6 {[%emt 0:00:33]} 49. e5 $2 {[%emt 0:00:30]} (49. Qg4 $1 $18 {[%csl Gb2][%cal Rg4g7]} Nf6 50. Qxc8 {[%mdl 64] Deflection} Rxc8 51. e5) 49... Rd5 $11 {[%emt 0:00:31] White must now prevent ...Nc5.} 50. Qe4 $2 {[%emt 0:00:41][%mdl 8192]} (50. Nf4 $1 $11 Rxd1 51. e6 Rd2+ 52. Kh3 Rxe6 53. Bxg7+ Kxg7 54. Nxe6+ Kh8 55. Qg6) 50... Qd8 {[%emt 0:00:27]} (50... Nc5 $19 {is more deadly.} 51. Qf3 Red8 52. Nxc5 Rxd1) 51. Rf1 {[%emt 0:00:19] [#]} Nc5 {[%emt 0:00:32]} (51... Nf8 $1 $17 52. Nf4 Rd2+ 53. Rf2 Rxf2+ 54. Kxf2 bxa4 55. bxa4 Qd2+ 56. Qe2 Qb4) 52. Nxc5 $15 {[%emt 0:00:18]} Rxc5 {[%emt 0:00:15]} 53. Kh3 {[%emt 0:00:46]} (53. Qg6 $1 $11 {and White has nothing to worry.} Rd5 54. Rf7) 53... Rd5 {[%emt 0:00:49]} (53... Qc8+ $19 54. Kg2 Qe6) 54. Qg6 {[%emt 0:00:23]} (54. Rf7 $17 {was called for.} Qc8+ 55. Qg4) 54... Qd7+ $19 {[%emt 0:00:22]} ({Stronger than} 54... Rd2 55. Rf7 Qg5 56. Bc1 Qxg6 57. hxg6 $11) 55. Rf5 $2 {[%emt 0:00:30]} (55. Qg4) 55... Qe6 $2 {[%emt 0:00:39]} (55... Rdxe5 $19 {has better winning chances.} 56. Bxe5 Rxe5) 56. Qg4 {[%emt 0:00:13]} (56. Qxe6 $142 Rxe6 57. Rf8+ Kh7 58. Kg4) 56... Kh7 {[%emt 0:00:25]} 57. Qe4 $2 {[%emt 0:00:34]} (57. Rf3 $17) 57... bxa4 {[%emt 0:00:24]} 58. bxa4 {[%emt 0:00:18]} Rb8 {[%emt 0:00:34]} 59. g4 $2 {[%emt 0:00:40]} (59. Bc3) 59... Kg8 {[%emt 0:00:10]} (59... Rxb2 $2 60. Rf6+ Kh8 61. Rxe6 $18) 60. Bc3 {[%emt 0:00:23]} Rb3 {[%emt 0:00:48]} 61. Qf3 {[%emt 0:00:37]} (61. Rf3 $142 Rc5 62. Bd4 Rxf3+ 63. Qxf3) 61... Qe7 {[%emt 0:00:25]} 62. Qg3 {[%emt 0:00:30]} Qa3 {[%emt 0:00:42]} 63. Rf3 {[%emt 0:00:15]} Qe7 $2 {[%emt 0:00:08]} (63... Qc1 $1 $19 {[%cal Rc1h1]} 64. Qf4 Qxf4 65. Rxf4 Rxc3+ 66. Kh4 Rxe5) 64. a5 {[%emt 0:00:46]} (64. Rf5 $1 $11 {was the only way to keep the balance.} Qa3 65. Rf3) 64... Rd1 {[%emt 0:00:36] ...Qc5 is the strong threat.} 65. a6 $2 {[%emt 0:00:22][%mdl 8192]} (65. Qf2 $17) 65... Rbb1 $2 {[%emt 0:00:19]} (65... Qc5 $19 {( -> ...Rh1+)} 66. Kh2 Ra3) 66. Qf4 $2 {[%emt 0:00:52][%mdl 8192]} (66. Qf2 $17) 66... Rh1+ {[%emt 0:00:13]} 67. Kg2 {[%emt 0:00:02]} Rhg1+ $2 {[%emt 0:00:17]} (67... Rbg1+ $19 68. Kf2 Rf1+ 69. Ke2 Rxf3 {[%mdl 64] Deflection} 70. Qxf3 Rh2+ 71. Kf1 Ra2) 68. Kh3 $11 {[%emt 0:00:37]} Rh1+ $2 {[%emt 0:00:23][%mdl 8192]} (68... c5 $11) 69. Kg2 $19 {[%emt 0:00:01]} Rhg1+ $2 {[%emt 0:01:24]} ({Black should play} 69... Rbg1+ $19 70. Kf2 Rf1+ 71. Ke2 Rxf3 {[%mdl 64] Deflection} 72. Qxf3 Rh2+ 73. Kf1 Ra2) 70. Kh3 $11 {[%emt 0:00:18]} Rh1+ $2 $40 {[%emt 0:00:30][%mdl 8320] Black is up to no good.} (70... c5 $11) 71. Kg2 $19 {[%emt 0:02:24]} Rbg1+ {[%emt 0:01:16]} 72. Kf2 {[%emt 0:00:30][%cal Oe5e6]} Qh4+ {[%emt 0:00:30]} ({Don't go for} 72... Rc1 $2 73. Ke2 Rhg1 74. a7 Rg2+ 75. Rf2 Rxf2+ 76. Qxf2 Rc2+ {[%mdl 64] Skewer} 77. Bd2 $19 (77. Kd3 $2 Rxf2 78. a8=Q+ Rf8 $19)) (72... Rf1+ $142 73. Ke2 Rxf3 {[%mdl 64] Deflection} 74. Qxf3 Rh2+ 75. Kf1 Ra2) 73. Ke3 {[#] Hoping for Qf7+.} Re1+ $1 74. Bxe1 $4 {[%emt 0:01:00][%mdl 8192]} (74. Kd4 $17 Qd8+ 75. Kc5 Qd5+ 76. Kb6 Qd8+ 77. Kc5) 74... Qxe1+ 75. Kd3 {[%emt 0:00:30]} Qb1+ {[%emt 0:01:30] Weighted Error Value: White=0.49/Black=0.37} 0-1